bitfinex-derivatives/quotes_ETHF0:USTF0_20240928
["timestamp","ask_amount","ask_price","bid_price","bid_amount"]
[1727484912354,0.3717,2695.3,2695.2,2.69607727]
[1727484912555,1.83104645,2695.3,2695.2,2.69607727]
[1727484912958,2.80339476,2695.3,2695.1,0.97380449]
[1727484916153,1.94626695,2695.3,2695.2,5.91978008]
[1727484916353,1.94626695,2695.3,2695.2,6.67465886]
[1727484916556,1.94626695,2695.3,2695.2,7.16162579]
[1727484916954,1.94626695,2695.3,2695.2,5.32997559]
[1727484917562,1.94626695,2695.3,2695.2,6.79069579]
[1727484917959,1.94626695,2695.3,2695.2,5.32997559]
[1727484918259,1.94626695,2695.3,2695.2,5.06810998]
[1727484918660,1.94626695,2695.3,2695.2,6.3034205]
[1727484918860,1.94626695,2695.3,2695.2,6.67428183]
[1727484919050,1.94626695,2695.3,2695.2,6.30336326]
[1727484919256,1.94626695,2695.3,2695.2,6.67421601]
[1727484919465,1.94626695,2695.4,2695.2,6.79043072]
[1727484919767,1.94626695,2695.4,2695.3,0.9735669]
[1727484919963,1.94626695,2695.4,2695.3,1.3686669]
[1727484920967,1.82643052,2695.5,2695.3,3.57609957]
[1727484921266,0.3682,2695.5,2695.4,1.23510767]
[1727484922163,1.82643052,2695.5,2695.4,2.69525219]
[1727484923365,1.82643052,2695.5,2695.4,1.23510767]
[1727484923366,0.3682,2695.5,2695.4,1.23510767]
[1727484923764,0.3682,2695.5,2695.4,2.69507951]
[1727484924862,0.3682,2695.5,2695.4,2.69478163]
[1727484925757,0.3682,2695.5,2695.4,1.23480979]
[1727484926155,1.45823052,2695.6,2695.5,0.37089]
[1727484926355,1.1212,2696.1,2695.5,14.27216576]
[1727484926557,0.7772,2696.1,2696.0,3.28585999]
[1727484926758,0.7772,2696.1,2696.0,4.52066978]
[1727484927267,0.4021,2696.1,2696.0,6.28360979]
[1727484927453,1.84123052,2696.5,2696.0,8.60028978]
[1727484927658,1.84123052,2696.5,2696.2,2.31213134]
[1727484927659,2.21633052,2696.5,2696.2,2.31213134]
[1727484927858,1.45823052,2696.4,2696.2,2.31213134]
[1727484928163,2.21633052,2696.5,2696.3,0.3767]
[1727484929265,0.7581,2696.5,2696.3,0.3767]
[1727484929464,0.3751,2696.5,2696.3,1.7167]
[1727484929667,0.3751,2696.5,2696.4,0.4048]
[1727484929862,0.3751,2696.5,2696.4,1.37693134]
[1727484930067,0.3751,2696.5,2696.4,2.60890024]
[1727484930267,0.3751,2696.5,2696.4,0.4048]
[1727484930667,0.383,2696.8,2696.4,5.45650134]
[1727484930863,0.772,2696.8,2696.5,2.68091674]
[1727484931061,0.772,2696.8,2696.5,2.31016674]
[1727484931265,0.389,2696.8,2696.5,1.34]
[1727484931457,3.2078,2696.9,2696.5,1.34]
[1727484931658,3.2078,2696.9,2696.7,1.71071]
[1727484931870,3.2078,2696.9,2696.8,0.37071]
[1727484932169,3.2078,2696.9,2696.8,4.47331]
[1727484932973,3.2078,2696.9,2696.8,10.47331]
[1727484933167,0.7393,2697.4,2697.2,0.37065]
[1727484933168,0.344,2697.4,2697.2,0.37065]
[1727484933366,0.096,2697.8,2697.3,0.7937]
[1727484933367,1.1063,2697.7,2697.3,0.7937]
[1727484933568,0.7623,2697.7,2697.4,1.34]
[1727484933871,2.1023,2697.7,2697.3,0.7937]
[1727484934263,3.2078,2697.6,2697.3,0.7937]
[1727484935267,2.1023,2697.7,2697.3,0.7937]
[1727484935470,5.3101,2697.7,2697.3,0.7937]
[1727484935671,1.34,2697.4,2697.0,3.2078]
[1727484935868,0.7976,2697.3,2697.0,3.2078]
[1727484936073,0.4066,2697.2,2697.0,3.2078]
[1727484938061,1.45823052,2697.6,2697.1,5.048]
[1727484938267,0.3901,2697.6,2697.4,1.34]
[1727484940574,0.3901,2697.6,2697.3,1.71064]
[1727484940770,0.3901,2697.6,2697.3,2.11034]
[1727484941072,0.3901,2697.6,2697.3,1.7397]
[1727484941371,0.3901,2697.6,2697.3,2.11034]
[1727484946074,0.3901,2697.6,2697.4,1.34]
[1727484952381,0.3829,2697.7,2697.5,0.37062]
[1727484952579,0.01,2697.8,2697.4,1.34]
[1727484952787,0.01,2697.8,2697.6,1.71059]
[1727484952982,0.01,2697.8,2697.7,0.3708]
[1727484954893,0.01,2697.8,2697.7,0.74139]
[1727484955190,0.01,2697.8,2697.7,0.3708]
[1727484960887,0.01,2697.8,2697.7,0.74139]
[1727484961088,0.01,2697.8,2697.7,0.3708]
[1727484962091,0.01,2697.8,2697.6,1.7106]
[1727484963792,0.01,2697.8,2697.6,1.34]
[1727484964097,0.01,2697.8,2697.6,1.71059]
[1727484964593,0.01,2697.8,2697.7,0.37059]
[1727484972200,1.46823052,2697.8,2697.7,0.37059]
[1727484973198,0.01,2697.8,2697.7,0.37059]
[1727484976497,0.01,2697.8,2697.7,1.33817049]
[1727484976702,0.01,2697.8,2697.7,0.37059]
[1727484976896,0.01,2697.8,2697.7,0.75929]
[1727484977097,0.01,2697.8,2697.7,2.09437049]
[1727484978303,0.01,2697.8,2697.7,3.32703766]
[1727484979896,0.01,2697.8,2697.7,2.35945717]
[1727484980498,0.01,2697.8,2697.7,1.12679]
[1727484980699,0.01,2697.8,2697.7,3.33100513]
[1727484981908,0.01,2697.8,2697.7,2.35957481]
[1727484982301,0.01,2697.8,2697.7,3.81777182]
[1727484985399,0.01,2697.8,2697.7,1.60337481]
[1727484985707,0.01,2697.8,2697.7,2.57572589]
[1727484985909,0.01,2697.8,2697.7,3.06207171]
[1727484987009,0.01,2697.8,2697.7,2.5757858]
[1727484987209,0.01,2697.8,2697.7,1.6038747]
[1727484987411,0.01,2697.8,2697.7,3.06207171]
[1727484988307,0.01,2697.8,2697.7,0.37059]
[1727484995221,1.46590899,2697.8,2697.7,3.0629781]
[1727484996914,1.46590899,2697.8,2697.7,1.60478109]
[1727484998208,0.01,2697.8,2697.7,2.69380614]
[1727484998414,0.01,2697.8,2697.7,1.23419109]
[1727484998610,0.01,2697.8,2697.7,2.69382962]
[1727484999112,1.95121199,2697.8,2697.7,2.69382962]
[1727484999515,1.95121199,2697.8,2697.7,2.20733767]
[1727484999720,1.95121199,2697.8,2697.7,1.23419109]
[1727485000019,1.95121199,2697.8,2697.7,2.20734365]
[1727485000219,1.95121199,2697.8,2697.7,2.69382962]
[1727485001426,1.95121199,2697.8,2697.7,1.23419109]
[1727485001623,1.95121199,2697.8,2697.7,2.69382962]
[1727485003927,1.95121199,2697.8,2697.7,2.20716433]
[1727485004324,1.95121199,2697.8,2697.7,2.69382962]
[1727485005220,1.95121199,2697.8,2697.7,2.69428111]
[1727485005526,1.95121199,2697.8,2697.7,1.23464258]
[1727485006422,1.95121199,2697.8,2697.7,2.69428111]
[1727485007323,1.95121199,2697.8,2697.7,1.23464258]
[1727485007714,1.95121199,2697.8,2697.7,2.69428111]
[1727485008127,1.95121199,2697.8,2697.7,1.23464258]
[1727485008323,1.95121199,2697.8,2697.7,0.97281898]
[1727485008825,1.95121199,2697.8,2697.7,2.20736348]
[1727485009920,1.95121199,2697.8,2697.7,2.20732662]
[1727485010123,1.95121199,2697.8,2697.7,0.97278212]
[1727485010328,2.9291004,2697.8,2697.6,0.3706]
[1727485010725,2.9191004,2697.7,2697.6,0.3706]
[1727485010929,2.9291004,2697.8,2697.6,0.3706]
[1727485018329,0.01,2697.8,2697.7,0.97278212]
[1727485018536,0.01,2697.8,2697.7,2.2070672]
[1727485019132,0.01,2697.8,2697.7,0.97278212]
[1727485019734,0.01,2697.8,2697.7,2.2070575]
[1727485020135,0.01,2697.8,2697.7,2.20705424]
[1727485021532,0.01,2697.8,2697.7,0.97278212]
[1727485021838,0.01,2697.8,2697.7,2.20704976]
[1727485022136,0.01,2697.8,2697.7,0.97278212]
[1727485022737,1.95153062,2697.8,2697.7,0.97278212]
[1727485023437,6.99793062,2697.8,2697.7,0.97278212]
[1727485023643,6.1430632,2697.8,2697.4,1.45963853]
[1727485023943,6.1430632,2697.8,2697.6,0.3706]
[1727485023944,5.14918036,2697.7,2697.6,0.3706]
[1727485024445,5.14918036,2697.7,2697.5,1.83024853]
[1727485024643,1.45600351,2697.6,2697.5,1.83024853]
[1727485024945,1.45600351,2697.6,2697.5,3.06042727]
[1727485025147,1.45600351,2697.6,2697.5,1.60078874]
[1727485025444,6.1269004,2697.7,2697.5,0.37061]
[1727485025941,2.9191004,2697.6,2697.5,0.37061]
[1727485026139,6.1269004,2697.7,2697.5,0.37061]
[1727485026337,6.1269004,2697.7,2697.4,0.3805]
[1727485026338,6.4974904,2697.7,2697.4,0.75112]
[1727485026948,0.4006,2697.6,2697.4,0.75112]
[1727485027142,0.4006,2697.6,2697.5,0.37062]
[1727485028036,0.4006,2697.6,2697.4,0.75112]
[1727485028437,0.4006,2697.6,2697.5,0.37062]
[1727485029744,0.4006,2697.6,2697.4,2.48692]
[1727485030042,0.4006,2697.6,2697.5,0.37062]
[1727485030644,2.9191004,2697.7,2697.4,2.1163]
[1727485030645,2.9191004,2697.7,2697.6,0.3706]
[1727485032943,2.9191004,2697.7,2697.5,0.37061]
[1727485033549,2.32201851,2697.8,2697.6,1.23004144]
[1727485033749,2.32201851,2697.8,2697.5,1.83024853]
[1727485033947,2.32201851,2697.8,2697.6,1.23006044]
[1727485034148,1.45610376,2697.7,2697.5,1.83024853]
[1727485034344,1.4561354,2697.7,2697.6,1.6006319]
[1727485034553,1.4561354,2697.7,2697.6,3.06027043]
[1727485034940,1.4561354,2697.7,2697.6,2.68967043]
[1727485035353,1.4561354,2697.7,2697.6,4.40027043]
[1727485035552,0.01,2697.8,2697.7,0.37059]
[1727485035553,1.4661354,2697.8,2697.7,0.37059]
[1727485035750,1.4661354,2697.8,2697.7,3.84545536]
[1727485036649,0.01,2697.8,2697.7,3.84545536]
[1727485037250,0.01,2697.8,2697.7,3.47486536]
[1727485037455,0.01,2697.8,2697.7,2.0161319]
[1727485037656,1.4661354,2697.8,2697.7,3.474874]
[1727485037852,1.4661354,2697.8,2697.7,2.0161319]
[1727485038065,1.4661354,2697.8,2697.7,3.474874]
[1727485038354,1.8496354,2697.8,2697.7,3.4749306]
[1727485040758,3.30662513,2697.8,2697.7,0.7861]
[1727485042059,0.3935,2697.8,2697.7,0.7861]
[1727485042855,3.30760519,2697.8,2697.7,0.7861]
[1727485043847,3.3077315,2697.8,2697.7,0.7861]
[1727485044961,0.3935,2697.8,2697.7,0.7861]
[1727485045661,3.79799567,2697.8,2697.7,0.7861]
[1727485046160,0.3935,2697.8,2697.7,0.7861]
[1727485047063,3.79799567,2697.8,2697.7,0.7861]
[1727485047666,3.79799567,2697.8,2697.5,1.4587421]
[1727485047667,0.37059,2697.7,2697.5,1.4587421]
[1727485047866,2.31375797,2697.7,2697.6,1.23038346]
[1727485048059,1.94316797,2697.7,2697.6,1.23038346]
[1727485048256,5.15096797,2697.7,2697.6,1.23037114]
[1727485049059,5.52155797,2697.7,2697.6,1.23037114]
[1727485049467,5.52155797,2697.7,2697.6,1.23038163]
[1727485050264,3.57839,2697.7,2697.6,1.23038163]
[1727485050471,5.52155797,2697.7,2697.6,1.23038163]
[1727485050670,1.94316797,2697.7,2697.6,1.23038163]
[1727485052170,5.91504797,2697.8,2697.6,1.23038163]
[1727485052473,1.94316797,2697.7,2697.5,1.8293521]
[1727485052772,1.45747305,2697.6,2697.5,1.8293521]
[1727485052972,1.45747305,2697.6,2697.5,3.05970627]
[1727485055662,2.91481669,2697.7,2697.5,0.37061]
[1727485056266,0.3706,2697.6,2697.5,0.37061]
[1727485058471,2.91481669,2697.7,2697.6,0.3706]
[1727485058661,6.13261669,2697.8,2697.7,0.37059]
[1727485059166,6.13261669,2697.8,2697.7,0.75559]
[1727485062674,6.13261669,2697.8,2697.7,3.44458378]
[1727485062675,4.67552537,2697.8,2697.7,3.44458378]
[1727485062870,4.67552537,2697.8,2697.7,3.44458389]
[1727485063277,3.2178,2697.8,2697.7,3.44458389]
[1727485063471,4.67576939,2697.8,2697.7,3.44458389]
[1727485063668,3.2178,2697.8,2697.7,3.44458389]
[1727485063972,4.67579016,2697.8,2697.7,3.44458389]
[1727485064274,4.67575913,2697.8,2697.7,3.07399389]
[1727485064476,4.67575769,2697.8,2697.7,3.07399389]
[1727485064877,3.2178,2697.8,2697.7,3.07399389]
[1727485066171,3.2178,2697.8,2697.7,8.49098389]
[1727485066372,4.67580239,2697.8,2697.7,7.03224179]
[1727485066572,3.2178,2697.8,2697.7,7.03224179]
[1727485067675,3.2178,2697.8,2697.7,7.03216938]
[1727485070185,3.2178,2697.8,2697.7,7.03206953]
[1727485070886,4.67580239,2697.8,2697.7,8.49084205]
[1727485071383,4.67580239,2697.8,2697.7,7.03206953]
[1727485071579,4.67580239,2697.8,2697.7,8.49079366]
[1727485072279,1.46800239,2697.8,2697.7,8.49079366]
[1727485072668,1.46800239,2697.8,2697.7,8.49070877]
[1727485074683,0.01,2697.8,2697.7,7.03198464]
[1727485075380,1.46800239,2697.8,2697.7,8.49065824]
[1727485075576,0.01,2697.8,2697.7,7.03198464]
[1727485075882,1.46800239,2697.8,2697.7,8.49067353]
[1727485076482,1.46800239,2697.8,2697.7,7.03198464]
[1727485076483,0.01,2697.8,2697.7,7.03198464]
[1727485076978,0.01,2697.8,2697.7,3.32558464]
[1727485077379,1.46800239,2697.8,2697.7,4.7842523]
[1727485077573,1.46800239,2697.8,2697.7,4.7842085]
[1727485077775,0.01,2697.8,2697.7,2.09559]
[1727485078986,0.01,2697.8,2697.7,0.75559]
[1727485080586,0.01,2697.8,2697.7,0.385]
[1727485082683,0.01,2697.8,2697.7,0.75559]
[1727485083483,0.01,2697.8,2697.7,0.385]
[1727485083985,0.01,2697.8,2697.6,2.11529]
[1727485084182,3.66710669,2697.8,2697.5,0.4001]
[1727485084487,3.66710669,2697.8,2697.5,0.77071]
[1727485084789,0.3817,2697.8,2697.6,0.3706]
[1727485084985,3.29651669,2697.8,2697.6,0.3706]
[1727485085684,3.29651669,2697.8,2697.7,1.23002371]
[1727485085889,0.3817,2697.8,2697.7,1.23002371]
[1727485086188,0.3817,2697.8,2697.6,1.82926766]
[1727485086383,1.45800485,2697.7,2697.6,1.82926766]
[1727485086683,1.45800485,2697.7,2697.6,3.05929705]
[1727485087781,1.45800485,2697.7,2697.6,1.60062939]
[1727485087981,1.45800485,2697.7,2697.6,3.05929705]
[1727485088392,1.45800485,2697.7,2697.6,1.60062939]
[1727485088582,1.45800485,2697.7,2697.6,3.05929705]
[1727485089278,1.45800485,2697.7,2697.6,2.68869705]
[1727485089488,0.37059,2697.7,2697.6,1.23002939]
[1727485090088,0.37059,2697.7,2697.6,1.23006023]
[1727485090388,0.37059,2697.7,2697.5,1.45866766]
[1727485090586,1.8297479,2697.6,2697.5,1.45866766]
[1727485090792,1.8297479,2697.6,2697.5,3.05932556]
[1727485091995,1.8297479,2697.6,2697.5,2.68870556]
[1727485094394,1.8297479,2697.6,2697.5,3.05932556]
[1727485095898,1.8297479,2697.6,2697.5,3.05924005]
[1727485100791,1.8297479,2697.6,2697.5,2.68861463]
[1727485100992,0.3718,2697.6,2697.4,0.37062]
[1727485101298,2.42956448,2697.5,2697.4,0.37062]
[1727485103195,0.3718,2697.6,2697.5,0.37062]
[1727485104891,0.37059,2697.7,2697.5,0.37062]
[1727485105091,5.39189669,2697.8,2697.6,0.37059]
[1727485105287,5.39189669,2697.8,2697.7,0.3769]
[1727485107997,2.47708,2697.8,2697.7,0.3769]
[1727485109097,1.13708,2697.8,2697.7,0.3769]
[1727485109600,3.0803384,2697.8,2697.7,0.3769]
[1727485109995,1.13708,2697.8,2697.7,0.3769]
[1727485110497,3.0803384,2697.8,2697.7,0.3769]
[1727485110697,1.13708,2697.8,2697.7,0.3769]
[1727485111601,3.0803384,2697.8,2697.7,0.3769]
[1727485112196,1.13708,2697.8,2697.7,0.3769]
[1727485113809,3.0803384,2697.8,2697.7,0.3769]
[1727485114099,1.13708,2697.8,2697.7,0.3769]
[1727485114305,3.0803384,2697.8,2697.7,0.3769]
[1727485114503,1.13708,2697.8,2697.7,0.3769]
[1727485115603,3.0803384,2697.8,2697.7,0.3769]
[1727485115797,1.13708,2697.8,2697.7,0.3769]
[1727485116206,0.37059,2697.7,2697.4,0.37062]
[1727485116407,3.28616972,2697.7,2697.4,1.1603]
[1727485117204,2.92557972,2697.8,2697.7,0.37059]
[1727485118607,0.01,2697.8,2697.7,0.37059]
[1727485122914,0.01,2697.8,2697.7,1.60047384]
[1727485123406,0.01,2697.8,2697.7,1.99487384]
[1727485123808,1.46806885,2697.8,2697.7,3.45344877]
[1727485124910,0.01,2697.8,2697.7,1.99487384]
[1727485125615,0.01,2697.8,2697.7,1.99480838]
[1727485125819,0.01,2697.8,2697.7,3.45329157]
[1727485126305,0.01,2697.8,2697.7,3.45333264]
[1727485126917,0.01,2697.8,2697.7,1.99480838]
[1727485128007,0.01,2697.8,2697.7,7.04120838]
[1727485129016,0.01,2697.8,2697.7,8.98706837]
[1727485129318,0.01,2697.8,2697.7,7.04120838]
[1727485130116,0.01,2697.8,2697.7,3.33461636]
[1727485130715,0.01,2697.8,2697.7,3.45283084]
[1727485131217,0.01,2697.8,2697.7,0.76499]
[1727485135211,2.43904063,2697.8,2697.7,0.76499]
[1727485135806,2.43904063,2697.8,2697.7,2.10499]
[1727485138015,1.45673087,2698.1,2697.7,11.07419966]
[1727485138214,1.45673087,2698.1,2697.9,1.82827211]
[1727485138409,1.0956,2698.2,2697.9,1.82827211]
[1727485138410,2.57885087,2698.2,2697.9,1.82827211]
[1727485138612,2.57885087,2698.2,2698.0,0.3898]
[1727485140314,2.57886087,2698.2,2698.0,0.3898]
[1727485140918,0.37053,2698.1,2698.0,0.3898]
[1727485141706,2.57886087,2698.2,2698.0,0.3898]
[1727485141911,0.37053,2698.1,2698.0,0.3898]
[1727485143313,2.57886087,2698.2,2698.0,0.3898]
[1727485143514,0.37053,2698.1,2698.0,1.36142108]
[1727485144617,5.78666087,2698.2,2698.0,1.36142108]
[1727485145018,2.57886087,2698.2,2698.0,1.36142108]
[1727485145214,5.78666087,2698.2,2698.0,1.36142108]
[1727485146026,2.91557972,2698.1,2698.0,0.3898]
[1727485150919,0.37055,2698.0,2697.7,1.34]
[1727485151119,0.3728,2697.9,2697.6,5.3148]
[1727485151321,2.42572372,2697.7,2697.6,5.6854]
[1727485151721,2.42572372,2697.7,2697.6,9.3926]
[1727485152221,2.42572372,2697.7,2697.6,8.6256]
[1727485153228,0.3728,2697.9,2697.8,0.37057]
[1727485153538,0.3728,2697.9,2697.8,3.05716452]
[1727485153725,0.3728,2697.9,2697.8,3.05721483]
[1727485154325,0.3728,2697.9,2697.8,1.59960998]
[1727485154512,0.3728,2697.9,2697.8,3.05721483]
[1727485158830,0.3728,2697.9,2697.8,3.05762187]
[1727485160029,0.3728,2697.9,2697.8,3.44732187]
[1727485161236,0.3728,2697.9,2697.8,6.39491807]
[1727485161633,0.3728,2697.9,2697.8,4.44905808]
[1727485161939,0.3728,2697.9,2697.8,6.39374013]
[1727485162428,0.3728,2697.9,2697.8,4.44905808]
[1727485163734,0.3728,2697.9,2697.8,4.45063028]
[1727485164941,0.3728,2697.9,2697.8,6.88295527]
[1727485167341,0.3728,2697.9,2697.8,4.45063028]
[1727485168144,0.3728,2697.9,2697.8,1.99039009]
[1727485168439,0.3728,2697.9,2697.8,3.44958637]
[1727485168440,2.31348184,2697.9,2697.8,3.44958637]
[1727485168940,2.31348184,2697.9,2697.8,3.44988191]
[1727485169135,0.3728,2697.9,2697.8,3.44988191]
[1727485169843,2.31348184,2697.9,2697.8,3.44988191]
[1727485173840,2.31348184,2697.9,2697.8,3.45002152]
[1727485174037,2.31348184,2697.9,2697.8,3.85162152]
[1727485174234,0.3728,2697.9,2697.8,2.39242524]
[1727485174536,2.33618184,2698.0,2697.9,0.37056]
[1727485174745,0.3955,2698.0,2697.9,2.57407713]
[1727485174938,2.33834553,2698.0,2697.9,2.57406708]
[1727485175133,2.33834449,2698.0,2697.9,2.57406532]
[1727485175339,0.3955,2698.0,2697.9,6.49455595]
[1727485176241,0.3955,2698.0,2697.9,6.49447934]
[1727485176733,0.3955,2698.0,2697.9,4.06223096]
[1727485176940,0.3955,2698.0,2697.9,6.49444831]
[1727485177245,0.3955,2698.0,2697.9,4.06223096]
[1727485177538,0.3955,2698.0,2697.9,6.49444523]
[1727485178448,0.3955,2698.0,2697.9,6.4944631]
[1727485178646,0.3955,2698.0,2697.9,2.80279214]
[1727485178841,0.3955,2698.0,2697.9,6.49431495]
[1727485179446,0.3955,2698.0,2697.9,6.49430306]
[1727485180340,0.3955,2698.0,2697.9,4.06208281]
[1727485180541,0.3955,2698.0,2697.9,6.49432387]
[1727485183742,0.3955,2698.0,2697.9,2.80280106]
[1727485183943,0.3955,2698.0,2697.9,6.49426792]
[1727485185353,0.3962,2698.1,2697.9,6.49426792]
[1727485185660,0.3962,2698.1,2698.0,3.69146686]
[1727485188954,0.3962,2698.1,2698.0,3.69147496]
[1727485190453,0.3962,2698.1,2698.0,0.97288624]
[1727485193153,2.80502372,2698.2,2698.1,0.37053]
[1727485193558,2.80502372,2698.2,2698.1,0.74953]
[1727485193755,2.80502372,2698.2,2698.1,0.379]
[1727485193953,6.02692372,2698.3,2698.2,0.37052]
[1727485194257,5.63352372,2698.3,2698.2,0.37052]
[1727485194751,3.2078,2698.3,2698.2,0.37052]
[1727485195353,2.42572372,2698.3,2698.2,0.37052]
[1727485196057,0.76388,2698.5,2698.2,0.37052]
[1727485196058,2.42572372,2698.4,2698.2,0.37052]
[1727485196758,2.42572372,2698.3,2698.2,0.37052]
[1727485196956,2.42572372,2698.4,2698.2,0.37052]
[1727485197257,2.79621372,2698.4,2698.1,2.09390624]
[1727485197555,1.94212253,2698.2,2698.1,2.09390624]
[1727485198354,1.82704671,2698.4,2698.1,6.75704762]
[1727485198658,0.37049,2698.4,2698.3,1.45879601]
[1727485198856,0.37049,2698.4,2698.3,2.68888105]
[1727485198857,1.82699911,2698.4,2698.3,2.68888105]
[1727485199055,0.37049,2698.4,2698.3,2.68888105]
[1727485199455,1.82696382,2698.4,2698.3,2.68888105]
[1727485199947,1.82693194,2698.4,2698.3,2.68888105]
[1727485200259,0.37049,2698.4,2698.3,2.68888105]
[1727485201257,6.45878297,2698.4,2698.3,2.68888105]
[1727485201461,6.45878297,2698.4,2698.1,1.94577249]
[1727485201462,1.29678,2698.3,2698.2,0.97257662]
[1727485201654,7.78644016,2698.3,2698.2,0.97257662]
[1727485201847,11.49284016,2698.3,2698.2,0.97257662]
[1727485203355,10.56657016,2698.3,2698.0,1.45879601]
[1727485203659,1.34,2698.1,2697.9,2.31617249]
[1727485203863,1.34,2698.1,2698.0,2.68895972]
[1727485203864,3.16685711,2698.1,2698.0,2.68895972]
[1727485205067,3.16685711,2698.1,2698.0,1.23007051]
[1727485205259,3.16685711,2698.1,2698.0,2.6889381]
[1727485205456,0.37055,2698.0,2697.9,0.3704]
[1727485205655,6.00552743,2698.0,2697.9,0.3704]
[1727485205964,0.37056,2697.9,2697.7,1.17608]
[1727485206266,2.82990188,2697.9,2697.7,1.17608]
[1727485206662,2.82990188,2697.9,2697.8,0.37057]
[1727485206862,2.82990188,2697.9,2697.7,1.17608]
[1727485210370,2.42710188,2697.9,2697.7,1.17608]
[1727485210866,2.79767188,2697.9,2697.7,0.8055]
[1727485211073,2.42710188,2697.9,2697.7,0.8055]
[1727485211258,2.42710188,2697.9,2697.7,1.17608]
[1727485211565,1.94153365,2697.8,2697.7,1.17608]
[1727485213466,0.37056,2697.9,2697.7,4.86617025]
[1727485213660,0.37056,2697.9,2697.8,3.17460355]
[1727485214766,0.37056,2697.9,2697.8,1.23003008]
[1727485214968,0.37056,2697.9,2697.8,3.17460355]
[1727485215868,0.37056,2697.9,2697.8,1.23003008]
[1727485216072,0.37056,2697.9,2697.8,3.17460355]
[1727485216372,0.37056,2697.9,2697.8,1.23003008]
[1727485217169,0.37056,2697.9,2697.8,3.17445973]
[1727485217780,1.71056,2697.9,2697.8,1.22988626]
[1727485217969,2.08456,2697.9,2697.8,1.22988626]
[1727485218777,2.08456,2697.9,2697.8,2.68808067]
[1727485219180,2.08456,2697.9,2697.8,1.22988626]
[1727485219473,2.08456,2697.9,2697.8,2.68802696]
[1727485219474,5.79096,2697.9,2697.8,2.68802696]
[1727485219676,13.36181538,2697.9,2697.6,0.97220578]
[1727485219875,0.3706,2697.6,2697.5,0.97220578]
[1727485220072,0.37062,2697.5,2697.4,0.97220578]
[1727485220272,0.37063,2697.4,2697.3,0.97220578]
[1727485220473,0.37063,2697.4,2697.0,1.74195377]
[1727485220474,0.37064,2697.3,2697.0,1.74195377]
[1727485220675,0.37064,2697.3,2697.0,1.37127377]
[1727485220676,3.16565177,2697.2,2697.0,1.37127377]
[1727485220876,4.5478,2697.1,2696.9,0.97177377]
[1727485221071,4.5478,2697.1,2696.5,1.74557377]
[1727485221072,0.37071,2696.9,2696.5,1.74557377]
[1727485221274,1.34,2696.6,2696.5,1.74557377]
[1727485221576,3.5872,2696.8,2696.6,0.37074]
[1727485221779,3.2078,2696.8,2696.7,0.37073]
[1727485222091,3.2078,2696.8,2696.7,6.27867375]
[1727485222381,0.344,2697.1,2697.0,0.37068]
[1727485222577,4.128,2697.4,2697.3,0.37064]
[1727485222784,2.79466979,2697.6,2697.3,0.37064]
[1727485223281,1.45466979,2697.6,2697.4,0.3929]
[1727485223482,5.12845979,2697.7,2697.4,0.3929]
[1727485225678,5.12845979,2697.7,2697.4,0.76353]
[1727485225679,4.75786979,2697.7,2697.4,0.76353]
[1727485225985,3.99186979,2697.7,2697.4,0.76352]
[1727485227080,2.5372,2697.7,2697.5,0.37061]
[1727485227589,2.5372,2697.7,2697.4,0.76352]
[1727485227785,3.99186979,2697.7,2697.4,0.76352]
[1727485228584,2.5372,2697.7,2697.4,1.7340242]
[1727485229089,2.5372,2697.7,2697.5,0.37061]
[1727485229595,2.5372,2697.7,2697.4,1.7340242]
[1727485229782,2.5372,2697.7,2697.4,1.3634042]
[1727485230085,2.5372,2697.7,2697.4,1.7340242]
[1727485230086,2.90779,2697.7,2697.4,1.7340242]
[1727485232390,2.90779,2697.7,2697.5,0.3842]
[1727485233385,2.5372,2697.7,2697.5,0.3842]
[1727485233695,0.4032,2697.7,2697.6,0.3706]
[1727485233988,0.4032,2697.7,2697.5,1.7253142]
[1727485234188,0.77379,2697.7,2697.6,0.9705042]
[1727485234392,0.77379,2697.7,2697.5,1.3547042]
[1727485234783,0.4032,2697.7,2697.5,1.7253142]
[1727485235590,0.4032,2697.7,2697.5,0.3842]
[1727485235798,0.4032,2697.7,2697.5,0.75481]
[1727485237784,0.4032,2697.7,2697.6,0.3706]
[1727485237989,0.4032,2697.7,2697.5,0.75481]
[1727485239494,0.4032,2697.7,2697.6,0.3706]
[1727485239797,0.4032,2697.7,2697.5,0.75481]
[1727485242794,0.4032,2697.7,2697.4,0.3929]
[1727485242795,1.7106,2697.6,2697.4,0.3929]
[1727485243695,1.7106,2697.6,2697.5,0.9705042]
[1727485243890,1.34,2697.6,2697.5,0.9705042]
[1727485245393,1.7106,2697.6,2697.5,0.9705042]
[1727485247595,0.76617,2697.9,2697.6,0.3706]
[1727485247799,1.14487,2697.9,2697.7,0.97090945]
[1727485248096,0.7743,2697.9,2697.7,1.36020945]
[1727485248298,3.9738,2698.2,2697.8,2.68457497]
[1727485248299,4.91833,2698.2,2697.8,2.68457497]
[1727485248486,0.3895,2698.1,2697.9,1.71517432]
[1727485248893,0.3895,2698.1,2698.0,0.3893]
[1727485249599,0.3895,2698.1,2698.0,0.75985]
[1727485249795,0.3895,2698.1,2698.0,1.36011432]
[1727485250303,0.3895,2698.1,2698.0,0.3893]
[1727485254208,0.3895,2698.1,2698.0,1.73066432]
[1727485254497,0.3895,2698.1,2698.0,0.75985]
[1727485254705,0.3895,2698.1,2698.0,1.73066432]
[1727485255205,0.3895,2698.1,2698.0,1.36011432]
[1727485257007,3.2078,2698.3,2698.1,0.37053]
[1727485257216,3.2078,2698.3,2698.2,2.56917248]
[1727485257502,3.2078,2698.3,2698.2,2.56900019]
[1727485257696,5.14840235,2698.3,2698.2,0.37052]
[1727485259904,1.94060235,2698.3,2698.2,0.37052]
[1727485260107,1.94060235,2698.4,2698.3,0.37051]
[1727485260306,5.30838188,2698.5,2698.0,0.3893]
[1727485260510,1.45383387,2698.2,2698.1,0.37053]
[1727485264214,1.82436387,2698.2,2698.0,0.3893]
[1727485264412,1.34,2698.1,2697.6,0.37059]
[1727485264717,1.71057,2697.8,2697.6,0.3832]
[1727485264916,0.401,2697.7,2697.6,0.3832]
[1727485265516,0.401,2697.7,2697.5,0.7673]